[Event "Early-Titled-Tuesday-Blitz-January-23-2024"]
[Site "Chess.com"]
[Date "2024.01.23"]
[Round "1"]
[White "tandaleo"]
[Black "Sanan_Sjugirov"]
[Result "0-1"]
[WhiteElo "2517"]
[BlackElo "2997"]
[TimeControl "180+1"]
[EndTime "8:07:00 PST"]
[Termination "Sanan_Sjugirov won on time"]

1. f4 {[%clk 0:03:00.9]} 1... d5 {[%clk 0:02:59]} 2. Nf3 {[%clk 0:03:00.2]} 2...
Nf6 {[%clk 0:02:56.6]} 3. b3 {[%clk 0:03:00.3]} 3... Bf5 {[%clk 0:02:54]} 4. Bb2
{[%clk 0:02:59.6]} 4... e6 {[%clk 0:02:54.6]} 5. e3 {[%clk 0:02:59.9]} 5... h6
{[%clk 0:02:54.4]} 6. Be2 {[%clk 0:03:00]} 6... Be7 {[%clk 0:02:54.7]} 7. d3
{[%clk 0:03:00.2]} 7... c5 {[%clk 0:02:48.4]} 8. Nbd2 {[%clk 0:03:00.5]} 8...
Nc6 {[%clk 0:02:47.7]} 9. O-O {[%clk 0:03:00.3]} 9... Qc7 {[%clk 0:02:45.3]} 10.
Ne5 {[%clk 0:02:59.8]} 10... Rg8 {[%clk 0:02:30.6]} 11. Bf3 {[%clk 0:02:30.2]}
11... Bh7 {[%clk 0:02:09.5]} 12. e4 {[%clk 0:02:23.4]} 12... dxe4 {[%clk
0:02:07.7]} 13. Nxe4 {[%clk 0:02:13.3]} 13... Bxe4 {[%clk 0:02:04.6]} 14. dxe4
{[%clk 0:02:11.4]} 14... Rd8 {[%clk 0:01:55.6]} 15. Qe2 {[%clk 0:01:58.7]} 15...
Nd4 {[%clk 0:01:45.7]} 16. Bxd4 {[%clk 0:01:58.6]} 16... cxd4 {[%clk 0:01:46.6]}
17. Nd3 {[%clk 0:01:32.4]} 17... g5 {[%clk 0:01:42]} 18. e5 {[%clk 0:01:27.5]}
18... g4 {[%clk 0:01:27.4]} 19. Bxb7 {[%clk 0:00:43.5]} 19... Nd5 {[%clk
0:01:27.6]} 20. Bxd5 {[%clk 0:00:43.1]} 20... Rxd5 {[%clk 0:01:28.5]} 21. f5
{[%clk 0:00:38]} 21... Bg5 {[%clk 0:01:28.6]} 22. fxe6 {[%clk 0:00:36.5]} 22...
fxe6 {[%clk 0:01:29.5]} 23. Kh1 {[%clk 0:00:36.8]} 23... h5 {[%clk 0:01:21.1]}
24. Rf2 {[%clk 0:00:23]} 24... Rf8 {[%clk 0:01:10.3]} 25. Raf1 {[%clk
0:00:22.6]} 25... Rxf2 {[%clk 0:01:08.8]} 26. Qxf2 {[%clk 0:00:22.9]} 26... Qe7
{[%clk 0:01:09.5]} 27. Qe1 {[%clk 0:00:22.6]} 27... Be3 {[%clk 0:00:58.6]} 28.
Rf6 {[%clk 0:00:12.7]} 28... Rxe5 {[%clk 0:00:57.8]} 29. Nxe5 {[%clk 0:00:06.7]}
29... Qxf6 {[%clk 0:00:57.9]} 30. Nd3 {[%clk 0:00:07.2]} 30... Qf5 {[%clk
0:00:55.7]} 31. Qe2 {[%clk 0:00:06.3]} 31... e5 {[%clk 0:00:53.2]} 32. Ne1
{[%clk 0:00:02.6]} 32... e4 {[%clk 0:00:52.9]} 33. c3 {[%clk 0:00:02.9]} 33...
Ke7 {[%clk 0:00:35.6]} 34. cxd4 {[%clk 0:00:03]} 34... Bxd4 {[%clk 0:00:36.5]}
35. Nc2 {[%clk 0:00:02.6]} 35... Bb6 {[%clk 0:00:36.5]} 36. h3 {[%clk
0:00:01.4]} 36... g3 {[%clk 0:00:35.8]} 0-1

[Event "Early-Titled-Tuesday-Blitz-January-23-2024"]
[Site "Chess.com"]
[Date "2024.01.23"]
[Round "1"]
[White "SpeedofLight0"]
[Black "RichardLeyvaP"]
[Result "1-0"]
[WhiteElo "2903"]
[BlackElo "2495"]
[TimeControl "180+1"]
[EndTime "8:07:01 PST"]
[Termination "SpeedofLight0 won by resignation"]

1. d4 {[%clk 0:03:00.9]} 1... Nf6 {[%clk 0:02:59.5]} 2. Nf3 {[%clk 0:03:00.8]}
2... g6 {[%clk 0:02:58.6]} 3. Nc3 {[%clk 0:02:58.7]} 3... d5 {[%clk 0:02:57.6]}
4. Bf4 {[%clk 0:02:58.6]} 4... c6 {[%clk 0:02:56.8]} 5. e3 {[%clk 0:02:57.7]}
5... Bf5 {[%clk 0:02:49.2]} 6. Bd3 {[%clk 0:02:54]} 6... Bxd3 {[%clk 0:02:49.1]}
7. cxd3 {[%clk 0:02:54.9]} 7... Bg7 {[%clk 0:02:47.4]} 8. Qb3 {[%clk 0:02:53.5]}
8... Qb6 {[%clk 0:02:46.6]} 9. Qc2 {[%clk 0:02:52]} 9... O-O {[%clk 0:02:45.8]}
10. O-O {[%clk 0:02:51.2]} 10... Nbd7 {[%clk 0:02:41]} 11. Na4 {[%clk
0:02:42.7]} 11... Qd8 {[%clk 0:02:37.6]} 12. h3 {[%clk 0:02:31.8]} 12... Re8
{[%clk 0:02:31.4]} 13. Qb3 {[%clk 0:02:19.4]} 13... b6 {[%clk 0:02:24.9]} 14.
Rfc1 {[%clk 0:02:17.5]} 14... Rc8 {[%clk 0:02:24.9]} 15. Rc2 {[%clk 0:02:15.4]}
15... c5 {[%clk 0:01:47.9]} 16. Rac1 {[%clk 0:02:12.7]} 16... h6 {[%clk
0:01:42.3]} 17. Bh2 {[%clk 0:02:00.2]} 17... Bf8 {[%clk 0:01:28.9]} 18. dxc5
{[%clk 0:01:59.5]} 18... bxc5 {[%clk 0:01:27.7]} 19. Nxc5 {[%clk 0:01:59.4]}
19... Nxc5 {[%clk 0:01:27.9]} 20. Rxc5 {[%clk 0:02:00]} 20... Rxc5 {[%clk
0:01:27.8]} 21. Rxc5 {[%clk 0:02:00.9]} 21... e6 {[%clk 0:01:22.9]} 22. Rc7
{[%clk 0:01:52.8]} 22... Bd6 {[%clk 0:01:19]} 23. Rxa7 {[%clk 0:01:17.2]} 23...
Bxh2+ {[%clk 0:01:12.8]} 24. Nxh2 {[%clk 0:01:18.1]} 24... Qd6 {[%clk
0:00:56.3]} 25. Qb7 {[%clk 0:01:15.8]} 25... Rf8 {[%clk 0:00:49]} 26. Ra6 {[%clk
0:01:11.1]} 26... Qc5 {[%clk 0:00:45.5]} 27. Rc6 {[%clk 0:01:10.1]} 27... Qa5
{[%clk 0:00:41.4]} 28. a3 {[%clk 0:01:03.7]} 28... Qd2 {[%clk 0:00:34.7]} 29.
Qb3 {[%clk 0:01:01.4]} 29... d4 {[%clk 0:00:28.4]} 30. Nf3 {[%clk 0:00:57.7]}
30... Qe2 {[%clk 0:00:24]} 31. Qc2 {[%clk 0:00:50.2]} 31... Qxc2 {[%clk
0:00:23.1]} 32. Rxc2 {[%clk 0:00:51.1]} 32... dxe3 {[%clk 0:00:22.8]} 33. fxe3
{[%clk 0:00:52]} 33... Rb8 {[%clk 0:00:21]} 34. Ne5 {[%clk 0:00:49.6]} 34... Rb3
{[%clk 0:00:19.6]} 35. Rf2 {[%clk 0:00:47.7]} 35... Nd5 {[%clk 0:00:18.9]} 36.
e4 {[%clk 0:00:47.6]} 36... Ne3 {[%clk 0:00:17.6]} 37. Rd2 {[%clk 0:00:37.9]}
37... g5 {[%clk 0:00:16.4]} 38. Kf2 {[%clk 0:00:37.6]} 38... f6 {[%clk 0:00:16]}
39. Nf3 {[%clk 0:00:33.6]} 39... Rxb2 {[%clk 0:00:14.6]} 40. Kxe3 {[%clk
0:00:33]} 1-0

[Event "Early-Titled-Tuesday-Blitz-January-23-2024"]
[Site "Chess.com"]
[Date "2024.01.23"]
[Round "1"]
[White "Lion-Al-Messi"]
[Black "Sajith_Peiris"]
[Result "1-0"]
[WhiteElo "2603"]
[BlackElo "2246"]
[TimeControl "180+1"]
[EndTime "8:07:01 PST"]
[Termination "Lion-Al-Messi won by resignation"]

1. e4 {[%clk 0:03:00.9]} 1... c6 {[%clk 0:02:59.2]} 2. Nf3 {[%clk 0:03:01]} 2...
d5 {[%clk 0:02:59.1]} 3. Nc3 {[%clk 0:03:01.6]} 3... Nf6 {[%clk 0:02:57.3]} 4.
e5 {[%clk 0:03:01.3]} 4... Ne4 {[%clk 0:02:57.1]} 5. Ne2 {[%clk 0:03:01.5]} 5...
Qb6 {[%clk 0:02:55.9]} 6. d4 {[%clk 0:03:01.4]} 6... e6 {[%clk 0:02:50.3]} 7.
Ng3 {[%clk 0:03:01.2]} 7... Nxg3 {[%clk 0:02:44.8]} 8. hxg3 {[%clk 0:03:02.1]}
8... c5 {[%clk 0:02:45.2]} 9. c3 {[%clk 0:03:02.6]} 9... Nc6 {[%clk 0:02:44.7]}
10. dxc5 {[%clk 0:02:50.4]} 10... Bxc5 {[%clk 0:02:43.2]} 11. Qe2 {[%clk
0:02:50.5]} 11... Bd7 {[%clk 0:02:38.4]} 12. b4 {[%clk 0:02:50.2]} 12... Be7
{[%clk 0:02:36.9]} 13. Be3 {[%clk 0:02:50]} 13... Qc7 {[%clk 0:02:34.4]} 14. Bd2
{[%clk 0:02:48.3]} 14... h6 {[%clk 0:02:18]} 15. Qe3 {[%clk 0:02:47.4]} 15... a5
{[%clk 0:02:09.7]} 16. b5 {[%clk 0:02:45.1]} 16... Nd8 {[%clk 0:02:05.4]} 17.
Bd3 {[%clk 0:02:43]} 17... b6 {[%clk 0:02:04]} 18. a4 {[%clk 0:02:40.3]} 18...
Nb7 {[%clk 0:02:03.6]} 19. O-O {[%clk 0:02:38.1]} 19... Nc5 {[%clk 0:02:01.9]}
20. Bc2 {[%clk 0:02:38.4]} 20... O-O {[%clk 0:01:51.6]} 21. Nd4 {[%clk
0:02:38.6]} 21... f6 {[%clk 0:01:39.8]} 22. Rae1 {[%clk 0:02:28.5]} 22... f5
{[%clk 0:01:28.5]} 23. f4 {[%clk 0:02:26.6]} 23... Ne4 {[%clk 0:01:21.2]} 24.
Bxe4 {[%clk 0:02:26.5]} 24... fxe4 {[%clk 0:01:11.1]} 25. g4 {[%clk 0:02:26.1]}
25... Bc5 {[%clk 0:01:09.4]} 26. Rc1 {[%clk 0:02:19]} 26... Rae8 {[%clk
0:01:05.2]} 27. Qg3 {[%clk 0:02:19]} 27... Qd8 {[%clk 0:01:01.2]} 28. g5 {[%clk
0:02:17.4]} 28... hxg5 {[%clk 0:00:59.9]} 29. fxg5 {[%clk 0:02:18.3]} 29...
Rxf1+ {[%clk 0:00:51]} 30. Rxf1 {[%clk 0:02:19.2]} 30... Rf8 {[%clk 0:00:50.8]}
31. g6 {[%clk 0:02:14.3]} 31... Rxf1+ {[%clk 0:00:48.9]} 32. Kxf1 {[%clk
0:02:15.2]} 32... Qf8+ {[%clk 0:00:45.3]} 33. Ke2 {[%clk 0:02:15.3]} 33... Bxd4
{[%clk 0:00:44.8]} 34. cxd4 {[%clk 0:02:14.7]} 34... Be8 {[%clk 0:00:41.5]} 35.
Qg5 {[%clk 0:02:02.6]} 35... Qf5 {[%clk 0:00:39]} 36. Qxf5 {[%clk 0:01:55.6]}
36... exf5 {[%clk 0:00:39.9]} 37. Bg5 {[%clk 0:01:55.8]} 37... Bxg6 {[%clk
0:00:38]} 38. Bd8 {[%clk 0:01:56]} 38... Bh5+ {[%clk 0:00:38]} 39. Ke1 {[%clk
0:01:52.8]} 39... f4 {[%clk 0:00:35.8]} 40. Bxb6 {[%clk 0:01:52.4]} 40... g5
{[%clk 0:00:29.8]} 41. Bxa5 {[%clk 0:01:52.4]} 41... Be8 {[%clk 0:00:29.3]} 42.
Bd8 {[%clk 0:01:47.3]} 42... g4 {[%clk 0:00:28.5]} 43. Bg5 {[%clk 0:01:46.1]}
43... f3 {[%clk 0:00:28.5]} 44. gxf3 {[%clk 0:01:45.4]} 44... exf3 {[%clk
0:00:26.7]} 45. Kf2 {[%clk 0:01:45.3]} 45... Bd7 {[%clk 0:00:25.2]} 46. b6
{[%clk 0:01:42.6]} 46... Bc8 {[%clk 0:00:18.4]} 47. e6 {[%clk 0:01:41]} 47...
Kf8 {[%clk 0:00:16.7]} 48. Bf6 {[%clk 0:01:38.8]} 48... Ke8 {[%clk 0:00:17]} 49.
Kg3 {[%clk 0:01:38.1]} 49... Bb7 {[%clk 0:00:16]} 50. a5 {[%clk 0:01:37.6]}
50... Ba6 {[%clk 0:00:13.3]} 51. Bh4 {[%clk 0:01:36.4]} 51... Bb7 {[%clk
0:00:13]} 52. Kxg4 {[%clk 0:01:34.1]} 52... f2 {[%clk 0:00:11.5]} 53. Bxf2
{[%clk 0:01:34.7]} 53... Kd8 {[%clk 0:00:12.1]} 54. Bh4+ {[%clk 0:01:33.5]}
54... Kc8 {[%clk 0:00:12]} 55. Kf5 {[%clk 0:01:34.4]} 55... Bc6 {[%clk 0:00:12]}
56. Ke5 {[%clk 0:01:34.6]} 56... Kb7 {[%clk 0:00:12.5]} 57. Kd6 {[%clk
0:01:35.5]} 57... Be8 {[%clk 0:00:11.4]} 58. Bd8 {[%clk 0:01:35.9]} 58... Ka6
{[%clk 0:00:12.2]} 59. e7 {[%clk 0:01:35.3]} 59... Bf7 {[%clk 0:00:09.1]} 60.
Kd7 {[%clk 0:01:35]} 60... Kxa5 {[%clk 0:00:07.9]} 61. b7+ {[%clk 0:01:35.2]}
1-0

[Event "Early-Titled-Tuesday-Blitz-January-23-2024"]
[Site "Chess.com"]
[Date "2024.01.23"]
[Round "1"]
[White "nickmatta"]
[Black "hmatyi07"]
[Result "1-0"]
[WhiteElo "2577"]
[BlackElo "2178"]
[TimeControl "180+1"]
[EndTime "8:07:02 PST"]
[Termination "nickmatta won by resignation"]

1. d4 {[%clk 0:02:59.7]} 1... Nf6 {[%clk 0:02:59.8]} 2. Bf4 {[%clk 0:03:00.1]}
2... g6 {[%clk 0:02:58.4]} 3. Nc3 {[%clk 0:02:59.4]} 3... c5 {[%clk 0:02:57.4]}
4. d5 {[%clk 0:02:57.2]} 4... b5 {[%clk 0:02:56.6]} 5. Nxb5 {[%clk 0:02:55.3]}
5... Qa5+ {[%clk 0:02:56.2]} 6. Nc3 {[%clk 0:02:55.4]} 6... Ne4 {[%clk
0:02:56.1]} 7. Qd3 {[%clk 0:02:47.8]} 7... Bg7 {[%clk 0:02:55]} 8. Bd2 {[%clk
0:02:47.3]} 8... Nxd2 {[%clk 0:02:55.1]} 9. Qxd2 {[%clk 0:02:47.3]} 9... Na6
{[%clk 0:02:48.4]} 10. Nf3 {[%clk 0:02:36.6]} 10... Rb8 {[%clk 0:02:47.1]} 11.
e4 {[%clk 0:02:16.9]} 11... Rxb2 {[%clk 0:02:23.1]} 12. e5 {[%clk 0:02:17.1]}
12... O-O {[%clk 0:02:08.1]} 13. Bc4 {[%clk 0:02:11]} 13... Qb4 {[%clk
0:01:58.6]} 14. Bd3 {[%clk 0:01:59.6]} 14... d6 {[%clk 0:01:51.9]} 15. O-O
{[%clk 0:01:46.4]} 15... Bg4 {[%clk 0:01:45.5]} 16. Bxa6 {[%clk 0:01:23.4]}
16... Bxf3 {[%clk 0:01:45]} 17. gxf3 {[%clk 0:01:24.3]} 17... Bxe5 {[%clk
0:01:42.7]} 18. Ne4 {[%clk 0:01:23.5]} 18... Qxd2 {[%clk 0:01:25.1]} 19. Nxd2
{[%clk 0:01:24.4]} 19... Rxc2 {[%clk 0:01:25.3]} 20. Rad1 {[%clk 0:01:24.5]}
20... Rxa2 {[%clk 0:01:23]} 21. Bc4 {[%clk 0:01:17.3]} 21... Rc2 {[%clk
0:01:15.3]} 22. Bd3 {[%clk 0:01:12]} 22... Rc3 {[%clk 0:01:15.5]} 23. Ne4 {[%clk
0:01:12]} 23... Ra3 {[%clk 0:01:09.2]} 24. Rfe1 {[%clk 0:01:05.4]} 24... Rb8
{[%clk 0:01:05.2]} 25. Nxc5 {[%clk 0:01:04.9]} 25... Bc3 {[%clk 0:00:54.6]} 26.
Nd7 {[%clk 0:01:02.4]} 26... Rbb3 {[%clk 0:00:36.7]} 27. Rxe7 {[%clk 0:00:59.1]}
27... Bb2 {[%clk 0:00:32]} 28. Be4 {[%clk 0:00:48.5]} 28... f5 {[%clk
0:00:30.5]} 29. Bc2 {[%clk 0:00:38.8]} 29... Rxf3 {[%clk 0:00:30.4]} 30. Rb1
{[%clk 0:00:39.5]} 30... Ra2 {[%clk 0:00:23]} 31. Nf6+ {[%clk 0:00:37.7]} 31...
Kf8 {[%clk 0:00:22.2]} 32. Rxh7 {[%clk 0:00:35.9]} 32... a5 {[%clk 0:00:04.1]}
33. Bd1 {[%clk 0:00:34.6]} 33... Rxf2 {[%clk 0:00:03.8]} 34. Kxf2 {[%clk
0:00:31.7]} 34... Bxf6+ {[%clk 0:00:03.6]} 35. Kf1 {[%clk 0:00:30]} 35... Bb2
{[%clk 0:00:03.4]} 36. Bb3 {[%clk 0:00:29.7]} 1-0

[Event "Early-Titled-Tuesday-Blitz-January-23-2024"]
[Site "Chess.com"]
[Date "2024.01.23"]
[Round "1"]
[White "EdmundPlayer"]
[Black "Zavgorodniy_Sergiy"]
[Result "0-1"]
[WhiteElo "2245"]
[BlackElo "2602"]
[TimeControl "180+1"]
[EndTime "8:07:03 PST"]
[Termination "Zavgorodniy_Sergiy won by checkmate"]

1. Nc3 {[%clk 0:02:59.5]} 1... Nf6 {[%clk 0:02:47.6]} 2. e4 {[%clk 0:02:56.6]}
2... e5 {[%clk 0:02:46.1]} 3. Bc4 {[%clk 0:02:54.8]} 3... Bb4 {[%clk 0:02:38.5]}
4. Nd5 {[%clk 0:02:49.7]} 4... Nxd5 {[%clk 0:02:35.4]} 5. Bxd5 {[%clk
0:02:50.6]} 5... c6 {[%clk 0:02:32]} 6. Bb3 {[%clk 0:02:48.7]} 6... d5 {[%clk
0:02:29]} 7. Nf3 {[%clk 0:02:30.8]} 7... O-O {[%clk 0:02:03.9]} 8. O-O {[%clk
0:02:18.5]} 8... dxe4 {[%clk 0:01:55.8]} 9. Nxe5 {[%clk 0:02:16.8]} 9... Bd6
{[%clk 0:01:50.2]} 10. d4 {[%clk 0:02:06.2]} 10... exd3 {[%clk 0:01:47.8]} 11.
Nxd3 {[%clk 0:02:05.3]} 11... Qc7 {[%clk 0:01:46.2]} 12. Qh5 {[%clk 0:01:53.3]}
12... Nd7 {[%clk 0:01:42.1]} 13. Re1 {[%clk 0:01:41.4]} 13... Nf6 {[%clk
0:01:40.2]} 14. Qh4 {[%clk 0:01:38.5]} 14... Bf5 {[%clk 0:01:38.5]} 15. Bg5
{[%clk 0:01:29.7]} 15... Nd5 {[%clk 0:01:36]} 16. Bxd5 {[%clk 0:00:44.9]} 16...
cxd5 {[%clk 0:01:35.2]} 17. Bf4 {[%clk 0:00:44.3]} 17... Rfe8 {[%clk 0:01:24.7]}
18. Bxd6 {[%clk 0:00:41.3]} 18... Qxd6 {[%clk 0:01:25.6]} 19. Qd4 {[%clk
0:00:38.7]} 19... Qg6 {[%clk 0:01:14.8]} 20. Nf4 {[%clk 0:00:32.3]} 20... Qg4
{[%clk 0:01:14.4]} 21. c3 {[%clk 0:00:29.4]} 21... Be4 {[%clk 0:01:07.7]} 22.
Qe3 {[%clk 0:00:20.2]} 22... g5 {[%clk 0:01:05.9]} 23. f3 {[%clk 0:00:16.2]}
23... gxf4 {[%clk 0:01:04.9]} 24. Qf2 {[%clk 0:00:12.7]} 24... Qf5 {[%clk
0:00:57.8]} 25. fxe4 {[%clk 0:00:10.1]} 25... dxe4 {[%clk 0:00:58.7]} 26. Rf1
{[%clk 0:00:09.7]} 26... f3 {[%clk 0:00:59.3]} 27. gxf3 {[%clk 0:00:09.8]} 27...
e3 {[%clk 0:00:59.9]} 28. Qg3+ {[%clk 0:00:09]} 28... Kh8 {[%clk 0:01:00.4]} 29.
Kh1 {[%clk 0:00:05.6]} 29... Rg8 {[%clk 0:01:00.1]} 30. Qd6 {[%clk 0:00:04.2]}
30... Rad8 {[%clk 0:00:59.5]} 31. Qe7 {[%clk 0:00:03.1]} 31... Rde8 {[%clk
0:00:42.2]} 32. Qd6 {[%clk 0:00:02.6]} 32... e2 {[%clk 0:00:35.9]} 33. Rf2
{[%clk 0:00:02.7]} 33... e1=Q+ {[%clk 0:00:34.5]} 34. Rxe1 {[%clk 0:00:01.7]}
34... Rxe1+ {[%clk 0:00:35.4]} 35. Rf1 {[%clk 0:00:02.2]} 35... Qxf3# {[%clk
0:00:33.3]} 0-1

[Event "Early-Titled-Tuesday-Blitz-January-23-2024"]
[Site "Chess.com"]
[Date "2024.01.23"]
[Round "1"]
[White "nekotyanof"]
[Black "Der_Balak_3Halak"]
[Result "1-0"]
[WhiteElo "2639"]
[BlackElo "2321"]
[TimeControl "180+1"]
[EndTime "8:07:04 PST"]
[Termination "nekotyanof won on time"]

1. e4 {[%clk 0:03:00.9]} 1... c5 {[%clk 0:02:58.9]} 2. Nf3 {[%clk 0:03:00.6]}
2... Nc6 {[%clk 0:02:57.3]} 3. Bb5 {[%clk 0:03:01.1]} 3... e6 {[%clk 0:02:55.5]}
4. O-O {[%clk 0:02:59.7]} 4... Nge7 {[%clk 0:02:54.2]} 5. c3 {[%clk 0:02:58]}
5... a6 {[%clk 0:02:48.5]} 6. Ba4 {[%clk 0:02:58.2]} 6... g6 {[%clk 0:02:41.6]}
7. d4 {[%clk 0:02:57.9]} 7... cxd4 {[%clk 0:02:41.6]} 8. cxd4 {[%clk 0:02:58.4]}
8... d5 {[%clk 0:02:40.5]} 9. exd5 {[%clk 0:02:55]} 9... exd5 {[%clk 0:02:20.8]}
10. Bg5 {[%clk 0:02:52.6]} 10... Bg7 {[%clk 0:02:10.9]} 11. Re1 {[%clk
0:02:52.7]} 11... b5 {[%clk 0:02:01.8]} 12. Bb3 {[%clk 0:02:25.9]} 12... O-O
{[%clk 0:01:41.5]} 13. Ne5 {[%clk 0:02:25]} 13... Nxe5 {[%clk 0:01:19.1]} 14.
dxe5 {[%clk 0:02:24.3]} 14... Be6 {[%clk 0:01:17.9]} 15. Nd2 {[%clk 0:02:19.5]}
15... Rc8 {[%clk 0:01:13.3]} 16. Nf3 {[%clk 0:02:18.7]} 16... Qd7 {[%clk
0:00:58.7]} 17. Qd2 {[%clk 0:02:06.9]} 17... h6 {[%clk 0:00:41.2]} 18. Bxh6
{[%clk 0:02:05.3]} 18... Nc6 {[%clk 0:00:29.2]} 19. Bxg7 {[%clk 0:02:03.9]}
19... Kxg7 {[%clk 0:00:30.1]} 20. Qf4 {[%clk 0:02:01.1]} 20... Qe7 {[%clk
0:00:25.4]} 21. Rad1 {[%clk 0:02:00.2]} 21... Rcd8 {[%clk 0:00:23.1]} 22. Ng5
{[%clk 0:01:59.8]} 22... Na5 {[%clk 0:00:17.3]} 23. Qf6+ {[%clk 0:01:55.3]}
23... Qxf6 {[%clk 0:00:16.3]} 24. exf6+ {[%clk 0:01:56.2]} 24... Kxf6 {[%clk
0:00:15.7]} 25. Nh7+ {[%clk 0:01:56.7]} 25... Kg7 {[%clk 0:00:14.5]} 26. Nxf8
{[%clk 0:01:57.3]} 26... Kxf8 {[%clk 0:00:14.8]} 27. Rd4 {[%clk 0:01:55.9]}
27... Nxb3 {[%clk 0:00:14.1]} 28. axb3 {[%clk 0:01:56.8]} 28... Rc8 {[%clk
0:00:14.4]} 29. Red1 {[%clk 0:01:57.1]} 29... Rc2 {[%clk 0:00:14.3]} 30. R4d2
{[%clk 0:01:57.3]} 30... Rc6 {[%clk 0:00:12.7]} 31. h3 {[%clk 0:01:57.4]} 31...
Ke7 {[%clk 0:00:12.4]} 32. b4 {[%clk 0:01:57.8]} 32... Rc4 {[%clk 0:00:11.8]}
33. Rd4 {[%clk 0:01:57.7]} 33... Rc2 {[%clk 0:00:12.4]} 34. R1d2 {[%clk
0:01:57.5]} 34... Rc1+ {[%clk 0:00:12.4]} 35. Kh2 {[%clk 0:01:58.1]} 35... Kd6
{[%clk 0:00:12.9]} 36. g4 {[%clk 0:01:56.4]} 36... Ke5 {[%clk 0:00:08.8]} 37.
f4+ {[%clk 0:01:56.5]} 37... Kf6 {[%clk 0:00:07.2]} 38. Kg3 {[%clk 0:01:53.4]}
38... Rg1+ {[%clk 0:00:07.1]} 39. Kf2 {[%clk 0:01:53.6]} 39... Rh1 {[%clk
0:00:06.6]} 40. Kg2 {[%clk 0:01:54]} 40... Re1 {[%clk 0:00:06.7]} 41. b3 {[%clk
0:01:52.7]} 41... Re3 {[%clk 0:00:06.4]} 42. Ra2 {[%clk 0:01:48.7]} 42... Rxb3
{[%clk 0:00:05.3]} 43. Rxa6 {[%clk 0:01:49.3]} 43... Rb2+ {[%clk 0:00:05.9]} 44.
Kg3 {[%clk 0:01:49.4]} 44... Rb3+ {[%clk 0:00:06.4]} 45. Kh4 {[%clk 0:01:49.8]}
45... Rf3 {[%clk 0:00:04.4]} 46. Rxd5 {[%clk 0:01:44.8]} 46... Rxf4 {[%clk
0:00:04.2]} 47. Rxb5 {[%clk 0:01:45.3]} 47... Rf3 {[%clk 0:00:03.8]} 48. Rc5
{[%clk 0:01:39.5]} 48... Kg7 {[%clk 0:00:02.6]} 49. b5 {[%clk 0:01:38.7]} 49...
f6 {[%clk 0:00:02.6]} 50. Rxe6 {[%clk 0:01:38.7]} 50... g5+ {[%clk 0:00:03.3]}
51. Rxg5+ {[%clk 0:01:39.4]} 51... fxg5+ {[%clk 0:00:04.1]} 52. Kxg5 {[%clk
0:01:40.3]} 52... Rxh3 {[%clk 0:00:03.8]} 53. Re7+ {[%clk 0:01:40.6]} 53... Kf8
{[%clk 0:00:04.2]} 54. Rb7 {[%clk 0:01:39]} 54... Rb3 {[%clk 0:00:04.4]} 55. b6
{[%clk 0:01:39.5]} 55... Kg8 {[%clk 0:00:03.7]} 56. Kg6 {[%clk 0:01:39.4]} 56...
Kf8 {[%clk 0:00:03.2]} 57. g5 {[%clk 0:01:40]} 57... Rb5 {[%clk 0:00:01.9]} 58.
Rf7+ {[%clk 0:01:40.1]} 58... Kg8 {[%clk 0:00:02.1]} 59. Rf6 {[%clk 0:01:41]}
59... Rb4 {[%clk 0:00:01.8]} 60. Rc6 {[%clk 0:01:35.3]} 60... Kf8 {[%clk
0:00:01.1]} 61. Kh7 {[%clk 0:01:32.7]} 1-0

[Event "Early-Titled-Tuesday-Blitz-January-23-2024"]
[Site "Chess.com"]
[Date "2024.01.23"]
[Round "1"]
[White "Harry_Rakkel"]
[Black "Smile2005"]
[Result "0-1"]
[WhiteElo "2667"]
[BlackElo "2389"]
[TimeControl "180+1"]
[EndTime "8:07:06 PST"]
[Termination "Smile2005 won by checkmate"]

1. e4 {[%clk 0:03:00.9]} 1... c5 {[%clk 0:02:59.1]} 2. Nf3 {[%clk 0:03:00.1]}
2... e6 {[%clk 0:02:58.3]} 3. d4 {[%clk 0:02:59.8]} 3... cxd4 {[%clk 0:02:59.2]}
4. Nxd4 {[%clk 0:02:59.9]} 4... a6 {[%clk 0:03:00.1]} 5. c4 {[%clk 0:02:59]}
5... Nf6 {[%clk 0:02:59.9]} 6. Nc3 {[%clk 0:02:58.1]} 6... Qc7 {[%clk
0:02:58.9]} 7. Bd3 {[%clk 0:02:54.9]} 7... Nc6 {[%clk 0:02:56.2]} 8. Nxc6 {[%clk
0:02:52.1]} 8... dxc6 {[%clk 0:02:54.7]} 9. O-O {[%clk 0:02:46]} 9... e5 {[%clk
0:02:54.2]} 10. Qe2 {[%clk 0:02:21]} 10... Bc5 {[%clk 0:02:50.5]} 11. Na4 {[%clk
0:02:18.6]} 11... Bd4 {[%clk 0:02:48.2]} 12. c5 {[%clk 0:02:14.3]} 12... Bg4
{[%clk 0:02:42.8]} 13. Qc2 {[%clk 0:02:13.5]} 13... O-O {[%clk 0:02:41.5]} 14.
Bd2 {[%clk 0:02:05.7]} 14... Rad8 {[%clk 0:02:39.5]} 15. h3 {[%clk 0:02:05]}
15... Be6 {[%clk 0:02:38.7]} 16. Rad1 {[%clk 0:02:00]} 16... h6 {[%clk 0:02:38]}
17. b4 {[%clk 0:01:57.9]} 17... Qe7 {[%clk 0:02:24.5]} 18. Nb6 {[%clk 0:01:53]}
18... a5 {[%clk 0:02:17.9]} 19. a3 {[%clk 0:01:50.9]} 19... axb4 {[%clk
0:02:16.5]} 20. axb4 {[%clk 0:01:51.8]} 20... Nd7 {[%clk 0:01:51.5]} 21. Nc4
{[%clk 0:01:49.9]} 21... Bxc4 {[%clk 0:01:36.9]} 22. Bxc4 {[%clk 0:01:48.8]}
22... Nf6 {[%clk 0:01:33.3]} 23. Be3 {[%clk 0:01:29.1]} 23... Bxe3 {[%clk
0:01:32.6]} 24. fxe3 {[%clk 0:01:30]} 24... Rxd1 {[%clk 0:01:32.6]} 25. Rxd1
{[%clk 0:01:30.9]} 25... Rd8 {[%clk 0:01:33]} 26. Rf1 {[%clk 0:01:19.8]} 26...
Rd7 {[%clk 0:01:19.9]} 27. Kh2 {[%clk 0:01:01.3]} 27... Qd8 {[%clk 0:01:11.2]}
28. Rf2 {[%clk 0:00:43.8]} 28... Rd1 {[%clk 0:01:00.7]} 29. Qb3 {[%clk
0:00:38.8]} 29... Ng4+ {[%clk 0:00:56.3]} 30. Kg3 {[%clk 0:00:35.4]} 30... Nxf2
{[%clk 0:00:51.3]} 31. Kxf2 {[%clk 0:00:34.9]} 31... Qd2+ {[%clk 0:00:47.9]} 32.
Kf3 {[%clk 0:00:32.5]} 32... Rg1 {[%clk 0:00:40.3]} 33. Bxf7+ {[%clk 0:00:21.4]}
33... Kh8 {[%clk 0:00:39.6]} 34. Qa2 {[%clk 0:00:21.3]} 34... Rf1+ {[%clk
0:00:27.2]} 35. Kg3 {[%clk 0:00:19.8]} 35... Qxe3+ {[%clk 0:00:25]} 36. Kh4
{[%clk 0:00:13.9]} 36... Qg5# {[%clk 0:00:23.9]} 0-1